fUST/lending_fUST_20250529
["ID","MTS","AMOUNT","RATE_DAILY","PERIOD"]
[362788750,1748458239393,-430.0,0.00021616,2]
[362788751,1748458239404,-430.0,0.00021616,2]
[362788752,1748458239575,-653.08,0.00021616,2]
[362788753,1748458239588,-2000.0,0.00021616,2]
[362788754,1748458239597,-5000.0,0.0002162,2]
[362788755,1748458239608,-1263.58,0.00021641,2]
[362788756,1748458239617,-648.85,0.00021642,2]
[362788757,1748458239626,-430.0,0.00021643,2]
[362788758,1748458239635,-800.0,0.00021743,2]
[362788759,1748458239646,-4000.0,0.00021783,4]
[362788760,1748458239655,-800.0,0.00021795,2]
[362788761,1748458239664,-151.0,0.000218,3]
[362788762,1748458239674,-800.0,0.00021834,2]
[362788763,1748458239683,-800.0,0.00021838,2]
[362788764,1748458239692,-800.0,0.00021838,2]
[362788765,1748458239701,-800.0,0.00021884,2]
[362788766,1748458239711,-800.0,0.00021888,2]
[362788767,1748458239720,-1272.36,0.0002189,2]
[362788768,1748458239729,-384.50377191,0.0002189,2]
[362788769,1748458239738,-430.0,0.0002189,2]
[362788770,1748458239747,-430.0,0.0002189,2]
[362788771,1748458239757,-653.08,0.0002189,2]
[362788772,1748458239767,-2209.19,0.000219,2]
[362788773,1748458239776,-6414.74533233,0.000219,2]
[362788774,1748458239785,-800.0,0.00021904,2]
[362788775,1748458239795,-1263.58,0.00021915,2]
[362788776,1748458239803,-648.85,0.00021916,2]
[362788777,1748458239813,-500.0,0.00021917,2]
[362788778,1748458239821,-430.0,0.00021917,2]
[362788779,1748458239831,-500.0,0.00021973,2]
[362788780,1748458239839,-537.33165271,0.00021973,2]
[362788781,1748458239848,-511.89631213,0.00021973,2]
[362788782,1748458239858,-600.0,0.00021973,2]
[362788783,1748458239867,-500.0,0.00021973,2]
[362788784,1748458239876,-500.0,0.00021973,2]
[362788785,1748458239885,-188634.87809989,0.00022,7]
[362788786,1748458239895,-205.0,0.00022,2]
[362788787,1748458239904,-57950.92088993,0.00022,2]
[362789030,1748458246272,-300.0,0.00019999,2]
[362789031,1748458246282,-234.0,0.00021777,2]
[362789032,1748458246291,-272.07638637,0.00021917,2]
[362789033,1748458342067,162.589635,0.00013699,2]
[362789035,1748458408330,20030.0,0.000246,120]
[362789073,1748459432359,-5855.0529839,0.00018166,2]
[362789075,1748459432368,-314.74726623,0.00018845,2]
[362789078,1748459432378,-884.1308203,0.00018934,2]
[362789081,1748459432387,-160.0,0.00019,2]
[362789083,1748459432397,-160.0,0.00019,2]
[362789087,1748459432407,-175.7795531,0.00019,2]
[362789090,1748459432417,-300.0,0.00019011,2]
[362789092,1748459432427,-24900.0,0.00019012,2]
[362789093,1748459432437,-500.0,0.00019177,2]
[362789094,1748459432447,-502.56996362,0.00019177,2]
[362789095,1748459432456,-500.0,0.00019177,2]
[362789096,1748459432466,-252.76269211,0.00019177,2]
[362789097,1748459432476,-500.0,0.00019177,2]
[362789098,1748459432486,-500.0,0.00019177,2]
[362789099,1748459432496,-182.17130518,0.00019177,2]
[362789100,1748459432506,-625.87,0.00019178,2]
[362789101,1748459432517,-430.0,0.00019178,2]
[362789102,1748459432526,-1210.93,0.00019178,2]
[362789103,1748459432536,-430.0,0.00019178,2]
[362789104,1748459432545,-430.0,0.00019178,2]
[362789105,1748459432554,-450.0,0.00019178,2]
[362789106,1748459432564,-430.0,0.00019178,2]
[362789107,1748459432575,-432.61563498,0.00019178,2]
[362789108,1748459432584,-371.02602251,0.00019178,2]
[362789109,1748459432594,-524.85156143,0.00019178,2]
[362789110,1748459432604,-430.0,0.00019178,2]
[362789111,1748459432613,-430.0,0.00019178,2]
[362789112,1748459432622,-491.2746876,0.00019178,2]
[362789113,1748459432631,-430.0,0.00019178,2]
[362789114,1748459432639,-500.0,0.00019178,2]
[362789115,1748459432648,-430.0,0.00019178,2]
[362789116,1748459432659,-468.21,0.00019178,2]
[362789117,1748459432667,-430.0,0.00019178,2]
[362789118,1748459432676,-430.0,0.00019178,2]
[362789119,1748459432685,-430.0,0.00019178,2]
[362789120,1748459432694,-430.0,0.00019178,2]
[362789121,1748459432703,-430.0,0.00019178,2]
[362789122,1748459432713,-430.0,0.00019178,2]
[362789123,1748459432722,-401.32539426,0.00019178,2]
[362789124,1748459432731,-1340.6,0.00019178,2]
[362789125,1748459432741,-430.0,0.00019178,2]
[362789126,1748459432749,-430.0,0.00019178,2]
[362789127,1748459432763,-430.0,0.00019178,2]
[362789128,1748459432773,-430.0,0.00019178,2]
[362789129,1748459432783,-430.0,0.00019178,2]
[362789130,1748459432792,-430.0,0.00019178,2]
[362789131,1748459432802,-151.0,0.00019178,2]
[362789132,1748459432812,-32709.06037266,0.00019178,2]
[362789133,1748459432821,-625.87,0.00019452,2]
[362789134,1748459432830,-430.0,0.00019452,2]
[362789135,1748459432842,-1210.93,0.00019452,2]
[362789136,1748459432852,-430.0,0.00019452,2]
[362789137,1748459432862,-500.0,0.00019452,2]
[362789138,1748459432871,-430.0,0.00019452,2]
[362789139,1748459432881,-430.0,0.00019452,2]
[362789140,1748459432890,-430.0,0.00019452,2]
[362789141,1748459432899,-430.0,0.00019452,2]
[362789142,1748459432909,-470.2837575,0.00019452,2]
[362789143,1748459432918,-430.0,0.00019452,2]
[362789144,1748459432931,-1340.6,0.00019452,2]
[362789145,1748459432941,-430.0,0.00019452,2]
[362789146,1748459432951,-430.0,0.00019452,2]
[362789147,1748459432960,-430.0,0.00019452,2]
[362789148,1748459432969,-430.0,0.00019452,2]
[362789149,1748459432978,-430.0,0.00019452,2]
[362789150,1748459432988,-430.0,0.00019452,2]
[362789151,1748459432997,-500.0,0.00019452,2]
[362789152,1748459433007,-405.0,0.00019543,2]
[362789153,1748459433017,-625.87,0.00019726,2]
[362789154,1748459433026,-430.0,0.00019726,2]
[362789155,1748459433036,-1210.93,0.00019726,2]
[362789156,1748459433046,-536.8567253,0.00019726,2]
[362789157,1748459433055,-1340.6,0.00019726,2]
[362789158,1748459433064,-430.0,0.00019726,2]
[362789159,1748459433074,-430.0,0.00019726,2]
[362789160,1748459433083,-430.0,0.00019726,2]
[362789161,1748459433092,-247.63335453,0.00019726,2]
[362789162,1748459433102,-430.0,0.00019726,2]
[362789163,1748459433111,-430.0,0.00019726,2]
[362789164,1748459433121,-505.16711817,0.00019726,2]
[362789165,1748459433130,-160.0,0.00019892,2]
[362789166,1748459433140,-423.24161968,0.00019892,2]
[362789167,1748459433150,-229.229959,0.00019892,2]
[362789168,1748459433160,-1768.56480882,0.000199,2]
[362789169,1748459433170,-500.0,0.00019922,2]
[362789170,1748459433179,-900.0,0.00019964,2]
[362789171,1748459433189,-675.56,0.00019972,2]
[362789172,1748459433199,-1985.0164367,0.00019977,2]
[362789173,1748459433208,-401.00020246,0.00019997,2]
[362789174,1748459433219,-430.0,0.00019997,2]
[362789175,1748459433229,-400.10738778,0.00019997,2]
[362789176,1748459433239,-160.0,0.00019999,2]
[362789177,1748459433249,-157.89,0.0002,2]
[362789178,1748459433258,-625.87,0.0002,2]
[362789179,1748459433268,-160.77678849,0.0002,2]
[362789180,1748459433279,-1210.93,0.0002,2]
[362789181,1748459433288,-1340.6,0.0002,2]
[362789182,1748459433298,-430.0,0.0002,2]
[362789183,1748459433308,-430.0,0.0002,2]
[362789184,1748459433318,-430.0,0.0002,2]
[362789185,1748459433327,-268.20167266,0.0002,2]
[362789186,1748459433337,-430.0,0.0002,2]
[362789187,1748459433347,-1768.56480868,0.00020072,2]
[362789188,1748459433357,-198.0,0.00020199,2]
[362789189,1748459433366,-151.0,0.00020199,2]
[362789190,1748459433376,-151.0,0.00020199,2]
[362789191,1748459433386,-194.08542105,0.00020199,2]
[362789192,1748459433396,-207.4,0.00020199,2]
[362789193,1748459433405,-5000.0,0.00020199,2]
[362789194,1748459433414,-1768.56480868,0.00020245,2]
[362789195,1748459433424,-675.56,0.00020246,2]
[362789196,1748459433434,-430.0,0.00020271,2]
[362789197,1748459433443,-151.0,0.00020271,2]
[362789198,1748459433453,-151.0,0.00020271,2]
[362789199,1748459433462,-625.87,0.00020273,2]
[362789200,1748459433471,-1210.93,0.00020273,2]
[362789201,1748459433481,-1340.6,0.00020273,2]
[362789202,1748459433491,-260.4,0.00020273,2]
[362789203,1748459433502,-430.0,0.00020273,2]
[362789204,1748459433511,-430.0,0.00020273,2]
[362789205,1748459433522,-430.0,0.00020273,2]
[362789206,1748459433531,-151.0,0.00020298,2]
[362789207,1748459433541,-151.0,0.00020298,2]
[362789208,1748459433551,-246.10380235,0.00020326,2]
[362789209,1748459433561,-151.0,0.00020326,2]
[362789210,1748459433571,-1768.56480868,0.00020417,3]
[362789211,1748459433580,-1000.0,0.0002047,2]
[362789212,1748459433590,-675.56,0.0002052,2]
[362789213,1748459433599,-430.0,0.00020545,2]
[362789214,1748459433609,-625.87,0.00020547,2]
[362789215,1748459433619,-1210.93,0.00020547,2]
[362789216,1748459433629,-1340.6,0.00020547,2]
[362789217,1748459433639,-430.0,0.00020547,2]
[362789218,1748459433648,-430.0,0.00020547,2]
[362789219,1748459433658,-1768.56480868,0.0002059,3]
[362789220,1748459433668,-4850.97891794,0.00020721,2]
[362789221,1748459433677,-420.0,0.00020721,2]
[362789222,1748459433686,-5000.0,0.00020747,2]
[362789223,1748459433696,-1768.56480868,0.00020762,3]
[362789224,1748459433706,-675.56,0.00020794,2]
[362789225,1748459433715,-248.208,0.00020801,2]
[362789226,1748459433725,-172.91821423,0.00020801,2]
[362789227,1748459433734,-430.0,0.00020819,2]
[362789228,1748459433744,-625.87,0.00020821,2]
[362789229,1748459433756,-1210.93,0.00020821,2]
[362789230,1748459433765,-1340.6,0.00020821,2]
[362789231,1748459433775,-384.50377191,0.00020821,2]
[362789232,1748459433785,-430.0,0.00020821,2]
[362789233,1748459433795,-1768.56480868,0.00020934,4]
[362789234,1748459433804,-278.0766187,0.00020979,2]
[362789235,1748459433814,-19461.17126133,0.0002099,2]
[362789236,1748459433824,-4850.9789179,0.00021016,2]
[362789237,1748459433834,-1500.0,0.00021018,2]
[362789238,1748459433844,-900.0,0.0002106,2]
[362789239,1748459433854,-675.56,0.00021068,2]
[362789240,1748459433864,-430.0,0.00021093,2]
[362789241,1748459433874,-625.87,0.00021095,2]
[362789242,1748459433883,-1210.93,0.00021095,2]
[362789243,1748459433892,-1340.6,0.00021095,2]
[362789244,1748459433901,-430.0,0.00021095,2]
[362789245,1748459433910,-1768.56480868,0.00021107,4]
[362789246,1748459433919,-1768.56480868,0.00021279,5]
[362789247,1748459433929,-5000.0,0.00021295,2]
[362789248,1748459433938,-4850.9789179,0.00021311,2]
[362789249,1748459433948,-675.56,0.00021342,2]
[362789250,1748459433957,-763.61,0.00021359,3]
[362789251,1748459433967,-430.0,0.00021367,2]
[362789252,1748459433976,-160.0,0.00021369,2]
[362789253,1748459433986,-625.87,0.00021369,2]
[362789254,1748459433995,-1210.93,0.00021369,2]
[362789255,1748459434005,-1340.6,0.00021369,2]
[362789256,1748459434015,-430.0,0.00021369,2]
[362789257,1748459434026,-1768.56480868,0.00021452,5]
[362789258,1748459434035,-202.319471,0.0002156,3]
[362789259,1748459434045,-2000.0,0.00021566,2]
[362789260,1748459434054,-215.0738,0.00021568,2]
[362789261,1748459434063,-4850.9789179,0.00021605,2]
[362789262,1748459434072,-675.56,0.00021616,2]
[362789263,1748459434082,-1768.56480868,0.00021624,5]
[362789264,1748459434092,-544.61908698,0.00021641,2]
[362789265,1748459434101,-625.87,0.00021643,2]
[362789266,1748459434111,-1210.93,0.00021643,2]
[362789267,1748459434120,-1340.6,0.00021643,2]
[362789268,1748459434130,-430.0,0.00021643,2]
[362789269,1748459434139,-1556.77,0.00021718,3]
[362789270,1748459434149,-800.0,0.00021736,2]
[362789271,1748459434158,-2036.23,0.0002177,3]
[362789272,1748459434167,-1018.12,0.0002177,3]
[362789273,1748459434177,-509.06,0.0002177,3]
[362789274,1748459434187,-254.53,0.0002177,3]
[362789275,1748459434197,-14499.85389202,0.0002178,2]
[362789276,1748459434206,-800.0,0.0002179,2]
[362789277,1748459434216,-1768.56480868,0.00021797,6]
[362789278,1748459434227,-800.0,0.00021814,2]
[362789279,1748459434237,-5000.0,0.00021843,2]
[362789280,1748459434246,-800.0,0.00021869,2]
[362789281,1748459434256,-800.0,0.00021875,2]
[362789282,1748459434266,-675.56,0.0002189,2]
[362789283,1748459434276,-2254.0,0.000219,2]
[362789284,1748459434286,-4850.9789179,0.000219,2]
[362789285,1748459434296,-3888.26183596,0.000219,2]
[362789336,1748459438400,-430.0,0.00019178,2]
[362789338,1748459438410,-430.0,0.00019178,2]
[362789340,1748459438420,-430.0,0.00019452,2]
[362789342,1748459438429,-370.0,0.00019452,2]
[362789344,1748459438439,-430.0,0.00019726,2]
[362789346,1748459438448,-430.0,0.0002,2]
[362789348,1748459438458,-430.0,0.00020273,2]
[362789350,1748459438468,-430.0,0.00020547,2]
[362789352,1748459438477,-430.0,0.00020547,2]
[362789354,1748459438486,-430.0,0.00020821,2]
[362789356,1748459438495,-430.0,0.00021095,2]
[362789358,1748459438505,-430.0,0.00021369,2]
[362789360,1748459438514,-430.0,0.00021643,2]
[362789362,1748459438524,-7302.11779567,0.000219,2]
[362789364,1748459438533,-6414.74533233,0.000219,2]
[362789366,1748459438543,-500.0,0.00021917,2]
[362789368,1748459438551,-625.87,0.00021917,2]
[362789370,1748459438560,-1210.93,0.00021917,2]
[362789372,1748459438570,-500.0,0.00021917,2]
[362789374,1748459438580,-500.0,0.00021917,2]
[362789376,1748459438589,-1340.6,0.00021917,2]
[362789378,1748459438598,-430.0,0.00021917,2]
[362789380,1748459438607,-430.0,0.00021917,2]
[362789382,1748459438616,-1768.56480868,0.00021969,6]
[362789384,1748459438626,-500.0,0.00021973,2]
[362789386,1748459438635,-500.0,0.00021973,2]
[362789388,1748459438644,-500.0,0.00021973,2]
[362789390,1748459438654,-600.0,0.00021973,2]
[362789392,1748459438663,-800.0,0.00021978,2]
[362789394,1748459438672,-800.0,0.00021979,2]
[362789396,1748459438682,-800.0,0.00021987,2]
[362789398,1748459438692,-155.0,0.00021999,2]
[362789400,1748459438701,-56821.39113851,0.00022,2]
[362789402,1748459438710,-4655.21838475,0.00022,3]
[362789404,1748459438719,-251663.78035831,0.00022,2]
[362789407,1748459438731,-2280.25985899,0.00022,2]
[362789409,1748459438742,-979.31052383,0.00022,2]
[362789411,1748459438756,-303.89804582,0.00022,2]
[362789554,1748459440492,-382.59,0.0002199,10]
[362789556,1748459440502,-109.10843,0.00022,2]
[362789562,1748459440545,-18862.61014572,0.00022,2]
[362794511,1748459633315,164.505766,0.00013699,2]
[362794754,1748460638436,-300.0,0.00018429,2]
[362794756,1748460638446,-11437.158646,0.0001843,2]
[362794758,1748460638456,-1109.91933991,0.000189,2]
[362794760,1748460638466,-252.21511058,0.00019078,2]
[362794762,1748460638475,-160.0,0.00019176,2]
[362794765,1748460638489,-842.5625,0.00019176,2]
[362794767,1748460638498,-212.66609673,0.00019176,2]
[362794769,1748460638508,-160.0,0.00019176,2]
[362794771,1748460638518,-160.0,0.00019176,2]
[362794773,1748460638527,-229.229959,0.00019176,2]
[362794775,1748460638539,-423.24161968,0.00019176,2]
[362794777,1748460638549,-500.0,0.00019177,2]
[362794779,1748460638558,-351.79897454,0.00019177,2]
[362794781,1748460638567,-500.0,0.00019177,2]
[362794783,1748460638577,-526.93388447,0.00019177,2]
[362794785,1748460638586,-177.51991362,0.00019177,2]
[362794787,1748460638595,-430.0,0.00019178,2]
[362794789,1748460638604,-430.0,0.00019178,2]
[362794791,1748460638614,-430.0,0.00019178,2]
[362794793,1748460638623,-430.0,0.00019178,2]
[362794795,1748460638632,-430.0,0.00019178,2]
[362794797,1748460638642,-430.0,0.00019178,2]
[362794799,1748460638651,-430.0,0.00019178,2]
[362794801,1748460638661,-430.0,0.00019178,2]
[362794803,1748460638671,-430.0,0.00019178,2]
[362794805,1748460638680,-430.0,0.00019178,2]
[362794807,1748460638690,-430.0,0.00019178,2]
[362794809,1748460638699,-430.0,0.00019178,2]
[362794811,1748460638708,-430.0,0.00019178,2]
[362794813,1748460638718,-430.0,0.00019178,2]
[362794815,1748460638728,-430.0,0.00019178,2]
[362794817,1748460638737,-430.0,0.00019178,2]
[362794819,1748460638745,-430.0,0.00019178,2]
[362794821,1748460638754,-430.0,0.00019178,2]
[362794823,1748460638763,-174.6196243,0.00019178,2]
[362794825,1748460638772,-430.0,0.00019178,2]
[362794827,1748460638781,-430.0,0.00019178,2]
[362794829,1748460638793,-430.0,0.00019178,2]
[362794831,1748460638802,-502.82162271,0.00019178,2]
[362794833,1748460638812,-430.0,0.00019178,2]
[362794835,1748460638822,-430.0,0.00019178,2]
[362794837,1748460638831,-430.0,0.00019178,2]
[362794839,1748460638843,-430.0,0.00019178,2]
[362794841,1748460638852,-430.0,0.00019178,2]
[362794843,1748460638862,-430.0,0.00019178,2]
[362794845,1748460638872,-430.0,0.00019178,2]
[362794847,1748460638881,-250.0,0.00019178,2]
[362794849,1748460638892,-430.0,0.00019178,2]
[362794851,1748460638901,-430.0,0.00019178,2]
[362794853,1748460638911,-430.0,0.00019178,2]
[362794855,1748460638920,-430.0,0.00019178,2]
[362794857,1748460638930,-430.0,0.00019178,2]
[362794859,1748460638940,-430.0,0.00019178,2]
[362794861,1748460638949,-430.0,0.00019178,2]
[362794863,1748460638958,-430.0,0.00019178,2]
[362794865,1748460638968,-430.0,0.00019178,2]
[362794867,1748460638978,-430.0,0.00019178,2]
[362794869,1748460638987,-430.0,0.00019178,2]
[362794871,1748460638996,-430.0,0.00019178,2]
[362794873,1748460639006,-430.0,0.00019178,2]
[362794875,1748460639015,-370.0,0.00019178,2]
[362794877,1748460639024,-430.0,0.00019178,2]
[362794879,1748460639034,-370.0,0.00019178,2]
[362794881,1748460639047,-430.0,0.00019178,2]
[362794883,1748460639056,-393.12367121,0.00019178,2]
[362794885,1748460639065,-430.0,0.00019178,2]
[362794887,1748460639075,-393.30936602,0.00019178,2]
[362794889,1748460639084,-446.98180134,0.00019178,2]
[362794891,1748460639093,-694.65,0.00019178,2]
[362794893,1748460639102,-300.0,0.00019178,2]
[362794895,1748460639111,-430.0,0.00019178,2]
[362794897,1748460639120,-430.0,0.00019178,2]
[362794899,1748460639130,-430.0,0.00019178,2]
[362794901,1748460639140,-525.52622314,0.00019178,2]
[362794903,1748460639150,-430.0,0.00019178,2]
[362794905,1748460639162,-430.0,0.00019178,2]
[362794907,1748460639173,-430.0,0.00019178,2]
[362794909,1748460639182,-430.0,0.00019178,2]
[362794911,1748460639194,-430.0,0.00019178,2]
[362794913,1748460639204,-430.0,0.00019178,2]
[362794915,1748460639214,-430.0,0.00019178,2]
[362794917,1748460639224,-200.58955863,0.00019178,2]
[362794920,1748460639236,-430.0,0.00019178,2]
[362794922,1748460639246,-430.0,0.00019178,2]
[362794924,1748460639256,-430.0,0.00019178,2]
[362794926,1748460639266,-430.0,0.00019178,2]
[362794928,1748460639275,-430.0,0.00019178,2]
[362794930,1748460639284,-430.0,0.00019178,2]
[362794932,1748460639296,-360.0,0.00019178,2]
[362794934,1748460639305,-430.0,0.00019178,2]
[362794936,1748460639315,-430.0,0.00019178,2]
[362794938,1748460639325,-430.0,0.00019178,2]
[362794940,1748460639334,-430.0,0.00019178,2]
[362794942,1748460639344,-500.0,0.00019178,2]
[362794944,1748460639353,-500.0,0.00019178,2]
[362794946,1748460639362,-500.0,0.00019178,2]
[362794948,1748460639371,-500.0,0.00019178,2]
[362794950,1748460639380,-500.0,0.00019178,2]
[362794952,1748460639389,-233.75492017,0.00019178,2]
[362794954,1748460639400,-500.0,0.00019178,2]
[362794956,1748460639410,-500.0,0.00019178,2]
[362794958,1748460639419,-500.0,0.00019178,2]
[362794960,1748460639428,-500.0,0.00019178,2]
[362794962,1748460639438,-500.0,0.00019178,2]
[362794964,1748460639447,-500.0,0.00019178,2]
[362794966,1748460639456,-500.0,0.00019178,2]
[362794968,1748460639465,-450.0,0.00019178,2]
[362794970,1748460639474,-430.0,0.00019178,2]
[362794972,1748460639483,-430.0,0.00019178,2]
[362794974,1748460639493,-430.0,0.00019178,2]
[362794976,1748460639502,-558.79518031,0.00019178,2]
[362794978,1748460639511,-362.32075423,0.00019178,2]
[362794980,1748460639520,-496.70628222,0.00019178,2]
[362794982,1748460639529,-430.0,0.00019178,2]
[362794984,1748460639541,-343.64927178,0.00019178,2]
[362794986,1748460639550,-430.0,0.00019178,2]
[362794988,1748460639559,-430.0,0.00019178,2]
[362794990,1748460639568,-430.0,0.00019178,2]
[362794992,1748460639578,-430.0,0.00019178,2]
[362794994,1748460639587,-430.0,0.00019178,2]
[362794996,1748460639596,-430.0,0.00019178,2]
[362794998,1748460639605,-430.0,0.00019178,2]
[362795000,1748460639615,-430.0,0.00019178,2]
[362795002,1748460639625,-430.0,0.00019178,2]
[362795004,1748460639634,-430.0,0.00019178,2]
[362795006,1748460639643,-430.0,0.00019178,2]
[362795008,1748460639653,-430.0,0.00019178,2]
[362795010,1748460639662,-430.0,0.00019178,2]
[362795012,1748460639671,-342.87558834,0.00019178,2]
[362795014,1748460639680,-434.59238907,0.00019178,2]
[362795016,1748460639690,-430.0,0.00019178,2]
[362795018,1748460639699,-430.0,0.00019178,2]
[362795020,1748460639708,-430.0,0.00019178,2]
[362795022,1748460639717,-434.34168179,0.00019178,2]
[362795024,1748460639727,-430.0,0.00019178,2]
[362795026,1748460639736,-430.0,0.00019178,2]
[362795028,1748460639745,-430.0,0.00019178,2]
[362795030,1748460639754,-545.34,0.00019178,2]
[362795032,1748460639763,-430.0,0.00019178,2]
[362795034,1748460639772,-430.0,0.00019178,2]
[362795036,1748460639782,-430.0,0.00019178,2]
[362795038,1748460639793,-430.0,0.00019178,2]
[362795040,1748460639803,-430.0,0.00019178,2]
[362795042,1748460639812,-430.0,0.00019178,2]
[362795044,1748460639821,-391.97137268,0.00019178,2]
[362795046,1748460639831,-450.0,0.00019178,2]
[362795048,1748460639840,-430.0,0.00019178,2]
[362795050,1748460639850,-430.0,0.00019178,2]
[362795052,1748460639859,-430.0,0.00019178,2]
[362795054,1748460639868,-430.0,0.00019178,2]
[362795056,1748460639878,-384.59265446,0.00019178,2]
[362795058,1748460639887,-430.0,0.00019178,2]
[362795060,1748460639897,-605.42,0.00019178,2]
[362795062,1748460639906,-430.0,0.00019178,2]
[362795064,1748460639915,-430.0,0.00019178,2]
[362795066,1748460639924,-430.0,0.00019178,2]
[362795068,1748460639934,-430.0,0.00019178,2]
[362795070,1748460639943,-430.0,0.00019178,2]
[362795072,1748460639952,-430.0,0.00019178,2]
[362795074,1748460639962,-235.56812555,0.00019178,2]
[362795076,1748460639971,-404.98352738,0.00019178,2]
[362795078,1748460639980,-430.0,0.00019178,2]
[362795080,1748460639989,-430.0,0.00019178,2]
[362795082,1748460639999,-430.0,0.00019178,2]
[362795084,1748460640008,-430.0,0.00019178,2]
[362795086,1748460640018,-430.0,0.00019178,2]
[362795088,1748460640027,-498.40816944,0.00019178,2]
[362795090,1748460640037,-430.0,0.00019178,2]
[362795092,1748460640048,-430.0,0.00019178,2]
[362795094,1748460640057,-430.0,0.00019178,2]
[362795096,1748460640067,-430.0,0.00019178,2]
[362795098,1748460640077,-430.0,0.00019178,2]
[362795100,1748460640086,-430.0,0.00019178,2]
[362795102,1748460640095,-430.0,0.00019178,2]
[362795104,1748460640105,-430.0,0.00019178,2]
[362795106,1748460640114,-430.0,0.00019178,2]
[362795109,1748460640124,-430.0,0.00019178,2]
[362795112,1748460640134,-430.0,0.00019178,2]
[362795114,1748460640143,-456.88235868,0.00019178,2]
[362795116,1748460640153,-430.0,0.00019178,2]
[362795118,1748460640164,-430.0,0.00019178,2]
[362795120,1748460640173,-500.0,0.00019178,2]
[362795122,1748460640182,-430.0,0.00019178,2]
[362795125,1748460640192,-430.0,0.00019178,2]
[362795127,1748460640201,-457.82,0.00019178,2]
[362795129,1748460640210,-430.0,0.00019178,2]
[362795131,1748460640220,-430.0,0.00019178,2]
[362795133,1748460640229,-430.0,0.00019178,2]
[362795135,1748460640240,-430.0,0.00019178,2]
[362795137,1748460640250,-430.0,0.00019178,2]
[362795139,1748460640259,-273.93681344,0.00019178,2]
[362795141,1748460640268,-430.0,0.00019178,2]
[362795143,1748460640277,-430.0,0.00019178,2]
[362795145,1748460640287,-403.48,0.00019178,2]
[362795147,1748460640299,-430.0,0.00019178,2]
[362795149,1748460640308,-430.0,0.00019178,2]
[362795151,1748460640317,-430.0,0.00019178,2]
[362795153,1748460640327,-450.0,0.00019178,2]
[362795155,1748460640337,-430.0,0.00019178,2]
[362795157,1748460640345,-169.5,0.00019178,2]
[362795159,1748460640354,-430.0,0.00019178,2]
[362795161,1748460640363,-435.25296486,0.00019178,2]
[362795163,1748460640372,-430.0,0.00019178,2]
[362795165,1748460640384,-290.00915493,0.00019178,2]
[362795167,1748460640395,-453.97495595,0.00019178,2]
[362795169,1748460640404,-430.0,0.00019178,2]
[362795171,1748460640414,-430.0,0.00019178,2]
[362795173,1748460640423,-430.0,0.00019178,2]
[362795175,1748460640432,-430.0,0.00019178,2]
[362795177,1748460640441,-430.0,0.00019178,2]
[362795179,1748460640450,-263.75304265,0.00019178,2]
[362795181,1748460640459,-430.0,0.00019178,2]
[362795183,1748460640467,-430.0,0.00019178,2]
[362795185,1748460640476,-430.0,0.00019178,2]